[Event "GER-chW Blitz 2019"]
[Site "Magdeburg"]
[Date "2019.05.25"]
[Round "9.4"]
[White "Kotyk, Valeriya"]
[Black "Muetsch, Annmarie"]
[Result "1-0"]
[ECO "A45"]
[WhiteElo "1739"]
[BlackElo "2266"]
[Annotator "NA"]
[PlyCount "139"]
[EventDate "2019.05.25"]
[EventType "tourn"]
[EventCountry "GER"]
[SourceTitle "playchess.com"]
[Source "ChessBase"]
[SourceQuality "1"]
[TimeControl "180+2"]

1. d4 {[%emt 0:00:00]} Nf6 {[%emt 0:00:00]} 2. Bg5 {[%emt 0:00:01]} d5 {[%emt 0:00:07]} 3. Bxf6 {[%emt 0:00:04]} exf6 {[%emt 0:00:03]} 4. e3 {[%emt 0:00:04]} f5 {[%emt 0:00:02]} 5. g3 {[%emt 0:00:02]} c6 {[%emt 0:00:03]} 6. Bg2 {[%emt 0:00:01]} Bd6 {[%emt 0:00:05]} 7. Ne2 {[%emt 0:00:01]} O-O {[%emt 0:00:02]} 8. Nd2 {[%emt 0:00:01]} Nd7 {[%emt 0:00:01]} 9. c4 {[%emt 0:00:02]} Nf6 {[%emt 0:00:03]} 10. O-O {[%emt 0:00:06]} Ne4 {[%emt 0:00:06]} 11. b3 {[%emt 0:00:11]} Bb4 {[%emt 0:00:13]} 12. Nf3 {[%emt 0:00:10]} Be6 {[%emt 0:00:04]} 13. a3 {[%emt 0:00:11]} Be7 {[%emt 0:00:11]} 14. cxd5 {[%emt 0:00:04]} Bxd5 {[%emt 0:00:07]} 15. Qd3 {[%emt 0:00:09]} Bf6 {[%emt 0:00:24]} 16. Nf4 {[%emt 0:00:04]} Re8 {[%emt 0:00:09]} 17. Nxd5 {[%emt 0:00:03]} Qxd5 {[%emt 0:00:02]} 18. Rac1 {[%emt 0:00:07]} Rad8 {[%emt 0:00:04]} 19. Qc4 {[%emt 0:00:04]} Qd6 {[%emt 0:00:09]} 20. b4 {[%emt 0:00:05]} g6 {[%emt 0:00:08]} 21. Rfd1 {[%emt 0:00:05]} Bg7 {[%emt 0:00:03]} 22. Nd2 {[%emt 0:00:05]} Nf6 {[%emt 0:00:05]} 23. Nb3 {[%emt 0:00:02]} Nd5 {[%emt 0:00:06]} 24. Nc5 {[%emt 0:00:05]} Qe7 {[%emt 0:00:09]} 25. Nd3 {[%emt 0:00:12]} Nb6 {[%emt 0:00:22]} 26. Qc5 {[%emt 0:00:07]} Qd7 {[%emt 0:00:06]} 27. Qc2 {[%emt 0:00:05]} Nd5 {[%emt 0:00:03]} 28. Nc5 {[%emt 0:00:01]} Qe7 {[%emt 0:00:04]} 29. Qb3 {[%emt 0:00:08]} Bh6 {[%emt 0:00:04]} 30. b5 {[%emt 0:00:10]} Qc7 {[%emt 0:00:25]} 31. bxc6 {[%emt 0:00:03]} bxc6 {[%emt 0:00:01]} 32. Rb1 {[%emt 0:00:18]} Rb8 {[%emt 0:00:03]} 33. Qd3 {[%emt 0:00:01]} Qa5 {[%emt 0:00:07]} 34. Rxb8 {[%emt 0:00:07]} Rxb8 {[%emt 0:00:01]} 35. Bxd5 {[%emt 0:00:03]} cxd5 {[%emt 0:00:02]} 36. Nd7 {[%emt 0:00:03]} Rd8 {[%emt 0:00:04]} 37. Ne5 {[%emt 0:00:03]} Qa4 {[%emt 0:00:06]} 38. Rc1 {[%emt 0:00:05]} Bf8 {[%emt 0:00:02]} 39. Rc7 {[%emt 0:00:05]} Qxa3 {[%emt 0:00:03]} 40. Qxa3 {[%emt 0:00:02]} Bxa3 {[%emt 0:00:02]} 41. Rxa7 {[%emt 0:00:01]} Bf8 {[%emt 0:00:07]} 42. Rxf7 {[%emt 0:00:02]} Bg7 {[%emt 0:00:04]} 43. Re7 {[%emt 0:00:02]} Bf6 {[%emt 0:00:03]} 44. Re6 {[%emt 0:00:04]} Kg7 {[%emt 0:00:01]} 45. Nf3 {[%emt 0:00:05]} Kf7 {[%emt 0:00:02]} 46. Rb6 {[%emt 0:00:01]} Ra8 {[%emt 0:00:05]} 47. Kg2 {[%emt 0:00:02]} Ra5 {[%emt 0:00:01]} 48. h4 {[%emt 0:00:01]} h6 {[%emt 0:00:02]} 49. Nd2 {[%emt 0:00:05]} Ra2 {[%emt 0:00:02]} 50. Nb3 {[%emt 0:00:01]} Rb2 {[%emt 0:00:02]} 51. Rb7+ {[%emt 0:00:02]} Kg8 {[%emt 0:00:03]} 52. Nc5 {[%emt 0:00:01]} Rxb7 {[%emt 0:00:05]} 53. Nxb7 {[%emt 0:00:01]} Kf7 {[%emt 0:00:01]} 54. Kf3 {[%emt 0:00:01]} Ke6 {[%emt 0:00:01]} 55. Nc5+ {[%emt 0:00:02]} Kd6 {[%emt 0:00:01]} 56. Ke2 {[%emt 0:00:02]} Be7 {[%emt 0:00:03]} 57. f3 {[%emt 0:00:02]} Bf6 {[%emt 0:00:01]} 58. Kd3 {[%emt 0:00:01]} Be7 {[%emt 0:00:01]} 59. Kc3 {[%emt 0:00:01]} Kc6 {[%emt 0:00:02]} 60. Nd3 {[%emt 0:00:03]} Bd6 {[%emt 0:00:02]} 61. f4 {[%emt 0:00:04]} Kc7 {[%emt 0:00:03]} 62. Ne5 {[%emt 0:00:02]} g5 {[%emt 0:00:03]} 63. hxg5 {[%emt 0:00:02]} hxg5 {[%emt 0:00:01]} 64. fxg5 {[%emt 0:00:01]} Be7 {[%emt 0:00:01]} 65. g6 {[%emt 0:00:02]} Bf6 {[%emt 0:00:00]} 66. Kb4 {[%emt 0:00:02]} Kd6 {[%emt 0:00:02]} 67. Nf7+ {[%emt 0:00:04]} Ke6 {[%emt 0:00:01]} 68. Ne5 {[%emt 0:00:05]} Be7+ {[%emt 0:00:03]} 69. Kb5 {[%emt 0:00:01]} Bg5 {[%emt 0:00:05]} 70. g7 {[%emt 0:00:04]} 1-0

[Event "GER-chW Blitz 2019"]
[Site "Magdeburg"]
[Date "2019.05.25"]
[Round "9.5"]
[White "Fuchs, Judith"]
[Black "Michna, Marta"]
[Result "0-1"]
[ECO "A45"]
[WhiteElo "2218"]
[BlackElo "2355"]
[Annotator "NA"]
[PlyCount "131"]
[EventDate "2019.05.25"]
[EventType "tourn"]
[EventCountry "GER"]
[SourceTitle "playchess.com"]
[Source "ChessBase"]
[SourceQuality "1"]
[TimeControl "180+2"]

1. d4 {[%emt 0:00:00]} Nf6 {[%emt 0:00:00]} 2. Bf4 {[%emt 0:00:00]} d6 {[%emt 0:00:00]} 3. Nc3 {[%emt 0:00:03]} Nbd7 {[%emt 0:00:03]} 4. Nf3 {[%emt 0:00:12]} Nh5 {[%emt 0:00:06]} 5. Bg5 {[%emt 0:00:03]} h6 {[%emt 0:00:02]} 6. Bh4 {[%emt 0:00:05]} g5 {[%emt 0:00:05]} 7. Bg3 {[%emt 0:00:01]} Bg7 {[%emt 0:00:04]} 8. e3 {[%emt 0:00:04]} c6 {[%emt 0:00:09]} 9. Be2 {[%emt 0:00:05]} Ndf6 {[%emt 0:00:09]} 10. Qd3 {[%emt 0:00:12]} a5 {[%emt 0:00:08]} 11. e4 {[%emt 0:00:17]} Nxg3 {[%emt 0:00:19]} 12. hxg3 {[%emt 0:00:02]} a4 {[%emt 0:00:11]} 13. a3 {[%emt 0:00:06]} Qa5 {[%emt 0:00:11]} 14. O-O-O {[%emt 0:00:11]} Ng4 {[%emt 0:00:05]} 15. Rhf1 {[%emt 0:00:11]} b5 {[%emt 0:00:52]} 16. e5 {[%emt 0:00:07]} b4 {[%emt 0:00:08]} 17. axb4 {[%emt 0:00:13]} Qxb4 {[%emt 0:00:01]} 18. Na2 {[%emt 0:00:01]} Qb6 {[%emt 0:00:00]} 19. exd6 Be6 20. d5 {[%emt 0:00:14]} Bxb2+ {[%emt 0:00:17]} 21. Kd2 {[%emt 0:00:01]} Qa5+ {[%emt 0:00:06]} 22. c3 {[%emt 0:00:04]} Qxd5 {[%emt 0:00:07]} 23. Nb4 {[%emt 0:00:13]} Qxd3+ {[%emt 0:00:04]} 24. Bxd3 {[%emt 0:00:06]} exd6 {[%emt 0:00:04]} 25. Nd4 {[%emt 0:00:07]} c5 {[%emt 0:00:01]} 26. Nxe6 fxe6 {[%emt 0:00:01]} 27. Na2 {[%emt 0:00:07]} O-O {[%emt 0:00:02]} 28. Kc2 {[%emt 0:00:03]} a3 {[%emt 0:00:00]} 29. Rd2 {[%emt 0:00:03]} d5 {[%emt 0:00:02]} 30. Re2 {[%emt 0:00:01]} c4 {[%emt 0:00:07]} 31. Bg6 {[%emt 0:00:02]} Rf6 {[%emt 0:00:01]} 32. Bh5 {[%emt 0:00:01]} d4 {[%emt 0:00:10]} 33. cxd4 {[%emt 0:00:04]} Ne3+ {[%emt 0:00:07]} 34. Rxe3 {[%emt 0:00:04]} Bxd4 35. Re4 {[%emt 0:00:04]} e5 {[%emt 0:00:07]} 36. f3 {[%emt 0:00:04]} Rb8 {[%emt 0:00:08]} 37. Re2 {[%emt 0:00:16]} Rb2+ {[%emt 0:00:02]} 38. Kd1 {[%emt 0:00:01]} Rb1+ {[%emt 0:00:03]} 39. Nc1 {[%emt 0:00:06]} Rfb6 {[%emt 0:00:02]} 40. Bg6 {[%emt 0:00:05]} Ra1 {[%emt 0:00:01]} 41. Rc2 {[%emt 0:00:05]} Rxg6 {[%emt 0:00:01]} 42. Kd2 {[%emt 0:00:01]} c3+ {[%emt 0:00:02]} 43. Kd3 {[%emt 0:00:01]} Rb6 44. f4 {[%emt 0:00:01]} gxf4 {[%emt 0:00:09]} 45. gxf4 {[%emt 0:00:00]} Rb2 {[%emt 0:00:01]} 46. fxe5 {[%emt 0:00:01]} Bxe5 {[%emt 0:00:00]} 47. Re1 {[%emt 0:00:05]} Bg7 {[%emt 0:00:03]} 48. Re8+ {[%emt 0:00:01]} Kh7 {[%emt 0:00:01]} 49. Re7 {[%emt 0:00:01]} Kg8 {[%emt 0:00:02]} 50. Re8+ {[%emt 0:00:01]} Kf7 {[%emt 0:00:01]} 51. Rc8 {[%emt 0:00:00]} Rab1 {[%emt 0:00:01]} 52. Rc7+ {[%emt 0:00:02]} Kg6 {[%emt 0:00:01]} 53. Rc6+ {[%emt 0:00:01]} Kh7 {[%emt 0:00:01]} 54. Rc7 {[%emt 0:00:00]} a2 {[%emt 0:00:03]} 55. Nxa2 {[%emt 0:00:03]} Rxc2 {[%emt 0:00:01]} 56. Kxc2 {[%emt 0:00:01]} Rb2+ {[%emt 0:00:01]} 57. Kd3 {[%emt 0:00:01]} Rxa2 58. Rc6 {[%emt 0:00:01]} Rxg2 {[%emt 0:00:02]} 59. Rc7 {[%emt 0:00:01]} h5 {[%emt 0:00:03]} 60. Rc4 {[%emt 0:00:00]} Kg6 {[%emt 0:00:01]} 61. Ke3 {[%emt 0:00:02]} Bf6 {[%emt 0:00:02]} 62. Kf3 {[%emt 0:00:00]} Rb2 {[%emt 0:00:01]} 63. Ke3 {[%emt 0:00:03]} h4 {[%emt 0:00:01]} 64. Rg4+ {[%emt 0:00:05]} Kh5 {[%emt 0:00:01]} 65. Rf4 {[%emt 0:00:01]} Bg5 {[%emt 0:00:01]} 66. Kd4 0-1

[Event "GER-chW Blitz 2019"]
[Site "Magdeburg"]
[Date "2019.05.25"]
[Round "9.6"]
[White "Lubbe, Melanie"]
[Black "Osmanodja, Filiz"]
[Result "1-0"]
[ECO "A45"]
[WhiteElo "2278"]
[BlackElo "2260"]
[Annotator "NA"]
[PlyCount "73"]
[EventDate "2019.05.25"]
[EventType "tourn"]
[EventCountry "GER"]
[SourceTitle "playchess.com"]
[Source "ChessBase"]
[SourceQuality "1"]
[TimeControl "180+2"]

1. d4 {[%emt 0:00:00]} Nf6 {[%emt 0:00:03]} 2. Nc3 {[%emt 0:00:00]} d5 {[%emt 0:00:01]} 3. Bf4 {[%emt 0:00:00]} e6 {[%emt 0:00:02]} 4. Nb5 {[%emt 0:00:06]} Na6 {[%emt 0:00:01]} 5. e3 {[%emt 0:00:02]} c6 {[%emt 0:00:03]} 6. Nc3 {[%emt 0:00:03]} Bb4 {[%emt 0:00:07]} 7. a3 {[%emt 0:00:06]} Bxc3+ 8. bxc3 {[%emt 0:00:01]} Nc7 {[%emt 0:00:06]} 9. c4 {[%emt 0:00:02]} dxc4 {[%emt 0:00:15]} 10. Bxc4 Ncd5 {[%emt 0:00:03]} 11. Bg3 {[%emt 0:00:10]} Ne4 {[%emt 0:00:08]} 12. Nf3 {[%emt 0:00:16]} Qa5+ {[%emt 0:00:09]} 13. Kf1 {[%emt 0:00:01]} Ndc3 {[%emt 0:00:23]} 14. Qd3 {[%emt 0:00:10]} b5 {[%emt 0:00:09]} 15. Bb3 {[%emt 0:00:02]} Ba6 {[%emt 0:00:11]} 16. Ne5 {[%emt 0:00:20]} b4 {[%emt 0:00:35]} 17. Bc4 {[%emt 0:00:07]} Bxc4 {[%emt 0:00:50]} 18. Nxc4 {[%emt 0:00:02]} Qb5 {[%emt 0:00:07]} 19. Ne5 {[%emt 0:00:29]} Nd2+ {[%emt 0:00:12]} 20. Ke1 {[%emt 0:00:06]} Qxd3 {[%emt 0:00:04]} 21. Nxd3 {[%emt 0:00:04]} Nde4 {[%emt 0:00:08]} 22. Nxb4 {[%emt 0:00:08]} Nxg3 {[%emt 0:00:03]} 23. hxg3 {[%emt 0:00:03]} Kd7 {[%emt 0:00:01]} 24. Kd2 {[%emt 0:00:04]} Ne4+ {[%emt 0:00:03]} 25. Ke2 {[%emt 0:00:01]} h6 {[%emt 0:00:01]} 26. Nd3 {[%emt 0:00:05]} Kd6 {[%emt 0:00:02]} 27. c4 {[%emt 0:00:04]} f6 {[%emt 0:00:03]} 28. Rhb1 {[%emt 0:00:05]} Rhb8 {[%emt 0:00:01]} 29. Rb2 {[%emt 0:00:02]} Rxb2+ {[%emt 0:00:02]} 30. Nxb2 {[%emt 0:00:01]} Nc3+ {[%emt 0:00:00]} 31. Kd3 {[%emt 0:00:01]} Rb8 {[%emt 0:00:05]} 32. Kxc3 {[%emt 0:00:01]} c5 {[%emt 0:00:01]} 33. Nd3 {[%emt 0:00:02]} cxd4+ {[%emt 0:00:01]} 34. exd4 {[%emt 0:00:01]} g5 {[%emt 0:00:01]} 35. c5+ {[%emt 0:00:03]} Kc7 {[%emt 0:00:02]} 36. Nb4 {[%emt 0:00:01]} a5 {[%emt 0:00:01]} 37. Na6+ {[%emt 0:00:02]} 1-0

[Event "GER-chW Blitz 2019"]
[Site "Magdeburg"]
[Date "2019.05.25"]
[Round "9.7"]
[White "Ries, Jutta"]
[Black "Sieber, Fiona"]
[Result "0-1"]
[ECO "A02"]
[WhiteElo "2017"]
[BlackElo "2250"]
[Annotator "NA"]
[PlyCount "96"]
[EventDate "2019.05.25"]
[EventType "tourn"]
[EventCountry "GER"]
[SourceTitle "playchess.com"]
[Source "ChessBase"]
[SourceQuality "1"]
[TimeControl "180+2"]

1. f4 {[%emt 0:00:00]} Nf6 {[%emt 0:00:02]} 2. Nf3 {[%emt 0:00:01]} c5 {[%emt 0:00:03]} 3. b3 {[%emt 0:00:01]} g6 {[%emt 0:00:07]} 4. Bb2 {[%emt 0:00:01]} Bg7 {[%emt 0:00:01]} 5. e3 {[%emt 0:00:01]} Nc6 {[%emt 0:00:05]} 6. Bb5 {[%emt 0:00:04]} O-O {[%emt 0:00:08]} 7. O-O {[%emt 0:00:03]} d5 {[%emt 0:00:09]} 8. Bxc6 {[%emt 0:00:09]} bxc6 {[%emt 0:00:01]} 9. Qe2 {[%emt 0:00:06]} a5 {[%emt 0:00:05]} 10. d3 {[%emt 0:00:02]} a4 {[%emt 0:00:03]} 11. Nbd2 {[%emt 0:00:03]} a3 {[%emt 0:00:05]} 12. Be5 {[%emt 0:00:02]} Nd7 {[%emt 0:00:04]} 13. Bxg7 {[%emt 0:00:02]} Kxg7 {[%emt 0:00:02]} 14. e4 {[%emt 0:00:10]} Nf6 {[%emt 0:00:33]} 15. Rae1 {[%emt 0:00:06]} Ra7 {[%emt 0:00:03]} 16. Kh1 {[%emt 0:00:11]} Re8 {[%emt 0:00:08]} 17. Ne5 {[%emt 0:00:03]} Qc7 {[%emt 0:00:05]} 18. Qf2 {[%emt 0:00:56]} Ra5 {[%emt 0:00:20]} 19. h3 {[%emt 0:00:10]} Nd7 {[%emt 0:00:03]} 20. Ndf3 {[%emt 0:00:06]} f6 {[%emt 0:00:04]} 21. Ng4 {[%emt 0:00:01]} Qxf4 {[%emt 0:00:18]} 22. e5 {[%emt 0:01:01]} f5 {[%emt 0:00:06]} 23. Ngh2 {[%emt 0:00:04]} Nf8 {[%emt 0:00:09]} 24. g3 {[%emt 0:00:04]} Qb4 {[%emt 0:00:05]} 25. Qe3 {[%emt 0:00:08]} f4 {[%emt 0:00:05]} 26. gxf4 {[%emt 0:00:01]} Bxh3 {[%emt 0:00:02]} 27. Rg1 {[%emt 0:00:01]} Ne6 {[%emt 0:00:10]} 28. Ng5 {[%emt 0:00:03]} Nxg5 {[%emt 0:00:04]} 29. Rxg5 {[%emt 0:00:01]} Bf5 {[%emt 0:00:02]} 30. Ng4 {[%emt 0:00:02]} Rf8 {[%emt 0:00:07]} 31. Nf2 {[%emt 0:00:01]} Qd4 {[%emt 0:00:07]} 32. Qxd4 {[%emt 0:00:02]} cxd4 {[%emt 0:00:01]} 33. Reg1 {[%emt 0:00:01]} Rc5 {[%emt 0:00:02]} 34. Rc1 {[%emt 0:00:02]} Be6 {[%emt 0:00:05]} 35. Kg2 {[%emt 0:00:01]} Rxf4 {[%emt 0:00:03]} 36. Nh3 {[%emt 0:00:02]} Bxh3+ {[%emt 0:00:03]} 37. Kxh3 {[%emt 0:00:01]} Rf2 {[%emt 0:00:01]} 38. Rg2 {[%emt 0:00:01]} Rf3+ {[%emt 0:00:02]} 39. Kh2 {[%emt 0:00:01]} Rxd3 {[%emt 0:00:02]} 40. Rf1 {[%emt 0:00:04]} Re3 {[%emt 0:00:06]} 41. Rgf2 {[%emt 0:00:01]} Rxe5 {[%emt 0:00:04]} 42. Rf7+ {[%emt 0:00:01]} Kh6 {[%emt 0:00:01]} 43. R1f2 {[%emt 0:00:03]} Rc3 {[%emt 0:00:04]} 44. Kg2 {[%emt 0:00:03]} Rf5 {[%emt 0:00:05]} 45. R7xf5 {[%emt 0:00:01]} gxf5 {[%emt 0:00:01]} 46. Kf1 {[%emt 0:00:02]} e6 {[%emt 0:00:02]} 47. Ke1 {[%emt 0:00:01]} Re3+ {[%emt 0:00:01]} 48. Kd2 {[%emt 0:00:01]} Kg5 {[%emt 0:00:03]} 0-1

[Event "GER-chW Blitz 2019"]
[Site "Magdeburg"]
[Date "2019.05.25"]
[Round "9.8"]
[White "Kushka, Alena"]
[Black "Daemering, Katrin"]
[Result "0-1"]
[ECO "A44"]
[WhiteElo "2148"]
[BlackElo "2003"]
[Annotator "NA"]
[PlyCount "112"]
[EventDate "2019.05.25"]
[EventType "tourn"]
[EventCountry "GER"]
[SourceTitle "playchess.com"]
[Source "ChessBase"]
[SourceQuality "1"]
[TimeControl "180+2"]

1. d4 {[%emt 0:00:00]} c5 {[%emt 0:00:00]} 2. d5 {[%emt 0:00:01]} e5 {[%emt 0:00:00]} 3. Nc3 {[%emt 0:00:01]} d6 {[%emt 0:00:01]} 4. e4 {[%emt 0:00:01]} a6 {[%emt 0:00:01]} 5. a4 {[%emt 0:00:02]} g6 {[%emt 0:00:03]} 6. Be2 {[%emt 0:00:08]} Bg7 {[%emt 0:00:01]} 7. Nf3 {[%emt 0:00:01]} Ne7 {[%emt 0:00:02]} 8. O-O {[%emt 0:00:02]} O-O {[%emt 0:00:02]} 9. Ne1 {[%emt 0:00:08]} h6 {[%emt 0:00:02]} 10. f4 {[%emt 0:00:06]} f5 {[%emt 0:00:16]} 11. fxe5 {[%emt 0:00:07]} dxe5 {[%emt 0:00:04]} 12. b3 {[%emt 0:00:24]} fxe4 {[%emt 0:00:10]} 13. d6 {[%emt 0:00:15]} Nf5 {[%emt 0:00:20]} 14. Bc4+ {[%emt 0:00:11]} Kh7 {[%emt 0:00:02]} 15. Nxe4 {[%emt 0:00:05]} b6 {[%emt 0:00:23]} 16. Nf3 {[%emt 0:00:36]} Bb7 {[%emt 0:00:16]} 17. Bd5 {[%emt 0:00:20]} Bxd5 {[%emt 0:00:10]} 18. Qxd5 {[%emt 0:00:01]} Nd7 {[%emt 0:00:03]} 19. Nfg5+ {[%emt 0:00:34]} hxg5 {[%emt 0:00:07]} 20. Nxg5+ {[%emt 0:00:02]} Kh8 {[%emt 0:00:02]} 21. Nf7+ {[%emt 0:00:05]} Rxf7 {[%emt 0:00:02]} 22. Qxf7 {[%emt 0:00:02]} Qe8 {[%emt 0:00:09]} 23. Qd5 {[%emt 0:00:08]} Nf6 {[%emt 0:00:08]} 24. Qd1 {[%emt 0:00:15]} Rd8 {[%emt 0:00:03]} 25. Qe2 {[%emt 0:00:04]} Rxd6 {[%emt 0:00:07]} 26. Bg5 {[%emt 0:00:01]} e4 {[%emt 0:00:17]} 27. Rf4 {[%emt 0:00:02]} Qf7 {[%emt 0:00:07]} 28. Bxf6 {[%emt 0:00:03]} Qxf6 {[%emt 0:00:05]} 29. Raf1 {[%emt 0:00:02]} Kg8 {[%emt 0:00:03]} 30. Rxe4 {[%emt 0:00:02]} Rd8 {[%emt 0:00:06]} 31. g4 {[%emt 0:00:01]} Nd4 {[%emt 0:00:07]} 32. Re8+ {[%emt 0:00:02]} Kh7 {[%emt 0:00:05]} 33. Rxf6 {[%emt 0:00:04]} Nxe2+ {[%emt 0:00:02]} 34. Rxe2 {[%emt 0:00:05]} Bxf6 {[%emt 0:00:01]} 35. Kf2 {[%emt 0:00:01]} Bd4+ {[%emt 0:00:01]} 36. Kf3 {[%emt 0:00:01]} Rf8+ {[%emt 0:00:01]} 37. Kg3 {[%emt 0:00:01]} Rf7 {[%emt 0:00:02]} 38. Re6 {[%emt 0:00:01]} Rb7 {[%emt 0:00:01]} 39. Rc6 {[%emt 0:00:01]} Kg7 {[%emt 0:00:02]} 40. Kf4 {[%emt 0:00:01]} Kf7 {[%emt 0:00:01]} 41. Kg5 {[%emt 0:00:02]} Be3+ {[%emt 0:00:02]} 42. Kh4 {[%emt 0:00:02]} b5 {[%emt 0:00:03]} 43. axb5 {[%emt 0:00:02]} axb5 {[%emt 0:00:01]} 44. Kg3 {[%emt 0:00:03]} Bd4 {[%emt 0:00:02]} 45. h4 {[%emt 0:00:01]} Re7 {[%emt 0:00:02]} 46. Kf4 {[%emt 0:00:01]} Be3+ {[%emt 0:00:02]} 47. Kf3 {[%emt 0:00:01]} Bd4 {[%emt 0:00:03]} 48. g5 {[%emt 0:00:04]} b4 {[%emt 0:00:04]} 49. Rc8 {[%emt 0:00:03]} Rd7 {[%emt 0:00:02]} 50. Ke4 {[%emt 0:00:01]} Bf2 {[%emt 0:00:02]} 51. Rh8 {[%emt 0:00:04]} Rd4+ {[%emt 0:00:03]} 52. Ke5 {[%emt 0:00:03]} Rxh4 {[%emt 0:00:02]} 53. Rc8 {[%emt 0:00:04]} Bd4+ {[%emt 0:00:02]} 54. Kd5 {[%emt 0:00:01]} Rg4 {[%emt 0:00:02]} 55. Rc7+ {[%emt 0:00:02]} Ke8 {[%emt 0:00:04]} 56. Ke6 {[%emt 0:00:04]} Re4+ {[%emt 0:00:02]} 0-1

[Event "GER-chW Blitz 2019"]
[Site "Magdeburg"]
[Date "2019.05.25"]
[Round "9.9"]
[White "Schulze, Lara"]
[Black "Kreismann, Franziska"]
[Result "1-0"]
[ECO "B12"]
[WhiteElo "2160"]
[BlackElo "1589"]
[Annotator "NA"]
[PlyCount "66"]
[EventDate "2019.05.25"]
[EventType "tourn"]
[EventCountry "GER"]
[SourceTitle "playchess.com"]
[Source "ChessBase"]
[SourceQuality "1"]
[TimeControl "180+2"]

1. e4 {[%emt 0:00:00]} c6 {[%emt 0:00:00]} 2. d4 {[%emt 0:00:00]} d5 {[%emt 0:00:00]} 3. e5 {[%emt 0:00:00]} Bf5 {[%emt 0:00:01]} 4. Nd2 {[%emt 0:00:01]} e6 {[%emt 0:00:01]} 5. Nb3 {[%emt 0:00:01]} Nd7 {[%emt 0:00:03]} 6. Nf3 {[%emt 0:00:01]} Bb4+ {[%emt 0:00:06]} 7. c3 Ba5 8. Be2 {[%emt 0:00:13]} Bc7 {[%emt 0:00:03]} 9. O-O {[%emt 0:00:08]} Ne7 {[%emt 0:00:04]} 10. Ne1 {[%emt 0:00:12]} Ng6 {[%emt 0:00:02]} 11. g4 {[%emt 0:00:18]} Bxg4 {[%emt 0:00:03]} 12. Bxg4 {[%emt 0:00:02]} Qh4 {[%emt 0:00:10]} 13. Ng2 {[%emt 0:00:08]} Qe7 {[%emt 0:00:06]} 14. f4 {[%emt 0:00:05]} O-O-O {[%emt 0:00:13]} 15. a4 {[%emt 0:00:08]} a6 {[%emt 0:00:02]} 16. Nd2 {[%emt 0:00:08]} c5 {[%emt 0:00:01]} 17. Nf3 {[%emt 0:00:34]} h6 {[%emt 0:00:17]} 18. Be3 {[%emt 0:00:07]} c4 {[%emt 0:00:03]} 19. b3 {[%emt 0:00:03]} Nb6 {[%emt 0:00:08]} 20. a5 {[%emt 0:00:02]} Nd7 {[%emt 0:00:09]} 21. bxc4 {[%emt 0:00:07]} dxc4 {[%emt 0:00:03]} 22. Nd2 {[%emt 0:00:07]} h5 {[%emt 0:00:19]} 23. Bf3 {[%emt 0:00:02]} Nh4 {[%emt 0:00:05]} 24. Nxh4 {[%emt 0:00:09]} Qxh4 {[%emt 0:00:01]} 25. Qe1 {[%emt 0:00:03]} Qe7 {[%emt 0:00:07]} 26. Rb1 {[%emt 0:00:03]} Nb8 {[%emt 0:00:13]} 27. Bxb7+ {[%emt 0:00:03]} Kd7 {[%emt 0:00:02]} 28. Nxc4 {[%emt 0:00:04]} g5 {[%emt 0:00:18]} 29. fxg5 {[%emt 0:00:04]} Rhg8 {[%emt 0:00:01]} 30. h4 {[%emt 0:00:04]} Nc6 {[%emt 0:00:09]} 31. Bxc6+ {[%emt 0:00:02]} Kxc6 {[%emt 0:00:01]} 32. Qf2 {[%emt 0:00:06]} Rd5 {[%emt 0:00:09]} 33. Qxf7 {[%emt 0:00:07]} Qd7 {[%emt 0:00:16]} 1-0

[Event "GER-chW Blitz 2019"]
[Site "Magdeburg"]
[Date "2019.05.25"]
[Round "9.10"]
[White "Braje, Monika"]
[Black "Kunze, Kerstin"]
[Result "0-1"]
[ECO "C45"]
[WhiteElo "1781"]
[BlackElo "2066"]
[Annotator "NA"]
[PlyCount "42"]
[EventDate "2019.05.25"]
[EventType "tourn"]
[EventCountry "GER"]
[SourceTitle "playchess.com"]
[Source "ChessBase"]
[SourceQuality "1"]
[TimeControl "180+2"]

1. e4 {[%emt 0:00:00]} e5 {[%emt 0:00:00]} 2. Nf3 {[%emt 0:00:01]} Nc6 {[%emt 0:00:00]} 3. d4 {[%emt 0:00:01]} exd4 {[%emt 0:00:06]} 4. Nxd4 {[%emt 0:00:01]} Bc5 {[%emt 0:00:02]} 5. Be3 {[%emt 0:00:01]} Bb6 {[%emt 0:00:12]} 6. c3 {[%emt 0:00:08]} d6 {[%emt 0:00:07]} 7. Bd3 {[%emt 0:00:05]} Nf6 {[%emt 0:00:01]} 8. O-O {[%emt 0:00:02]} O-O {[%emt 0:00:02]} 9. Kh1 {[%emt 0:00:03]} Ng4 {[%emt 0:00:10]} 10. Nd2 {[%emt 0:00:27]} Nxe3 {[%emt 0:00:20]} 11. fxe3 {[%emt 0:00:01]} Qg5 {[%emt 0:00:02]} 12. Nc4 {[%emt 0:00:22]} Ne5 {[%emt 0:00:09]} 13. Nxb6 {[%emt 0:00:23]} axb6 {[%emt 0:00:03]} 14. Nf3 {[%emt 0:00:06]} Qxe3 {[%emt 0:00:06]} 15. Nxe5 dxe5 16. Rf3 {[%emt 0:00:04]} Qc5 {[%emt 0:00:10]} 17. Rg3 {[%emt 0:00:03]} g6 {[%emt 0:00:08]} 18. Qf3 {[%emt 0:00:04]} Be6 {[%emt 0:00:09]} 19. Rf1 {[%emt 0:00:05]} Bxa2 {[%emt 0:00:14]} 20. Bc2 {[%emt 0:00:12]} Bc4 {[%emt 0:00:03]} 21. Rf2 {[%emt 0:00:05]} Ra1+ {[%emt 0:00:04]} 0-1

[Event "GER-chW Blitz 2019"]
[Site "Magdeburg"]
[Date "2019.05.25"]
[Round "9.11"]
[White "Mader, Lena"]
[Black "Gheng, Simona"]
[Result "0-1"]
[ECO "A18"]
[WhiteElo "1839"]
[BlackElo "1991"]
[Annotator "NA"]
[PlyCount "74"]
[EventDate "2019.05.25"]
[EventType "tourn"]
[EventCountry "GER"]
[SourceTitle "playchess.com"]
[Source "ChessBase"]
[SourceQuality "1"]
[TimeControl "180+2"]

1. c4 {[%emt 0:00:00]} e6 {[%emt 0:00:00]} 2. Nc3 {[%emt 0:00:00]} Nf6 {[%emt 0:00:00]} 3. e4 {[%emt 0:00:00]} d5 {[%emt 0:00:10]} 4. e5 {[%emt 0:00:01]} Ng8 {[%emt 0:00:08]} 5. d4 {[%emt 0:00:16]} c6 {[%emt 0:00:02]} 6. Nf3 {[%emt 0:00:06]} Bb4 {[%emt 0:00:03]} 7. cxd5 {[%emt 0:00:16]} cxd5 {[%emt 0:00:03]} 8. Qa4+ {[%emt 0:00:20]} Nc6 {[%emt 0:00:00]} 9. Bb5 {[%emt 0:00:07]} Bxc3+ {[%emt 0:00:02]} 10. bxc3 {[%emt 0:00:03]} Nge7 {[%emt 0:00:01]} 11. O-O {[%emt 0:00:05]} O-O {[%emt 0:00:01]} 12. Ba3 {[%emt 0:00:11]} Bd7 {[%emt 0:00:19]} 13. Qc2 {[%emt 0:00:14]} Re8 {[%emt 0:00:03]} 14. Ng5 {[%emt 0:00:16]} Ng6 {[%emt 0:00:01]} 15. Nf3 {[%emt 0:00:12]} Rc8 {[%emt 0:00:01]} 16. Qd2 {[%emt 0:00:09]} Qa5 {[%emt 0:00:13]} 17. Bd6 {[%emt 0:00:15]} Qxb5 {[%emt 0:00:03]} 18. Rab1 {[%emt 0:00:04]} Qa6 {[%emt 0:00:07]} 19. h4 {[%emt 0:00:04]} h5 {[%emt 0:00:06]} 20. Qg5 {[%emt 0:00:04]} Nce7 {[%emt 0:00:10]} 21. Qxh5 {[%emt 0:00:11]} Nf4 {[%emt 0:00:11]} 22. Qg5 {[%emt 0:00:12]} Ne2+ {[%emt 0:00:08]} 23. Kh1 {[%emt 0:00:03]} Nxc3 {[%emt 0:00:05]} 24. Bxe7 {[%emt 0:00:03]} Rxe7 {[%emt 0:00:07]} 25. Qxe7 {[%emt 0:00:01]} Nxb1 {[%emt 0:00:01]} 26. Rxb1 {[%emt 0:00:05]} Qc6 {[%emt 0:00:15]} 27. Ng5 {[%emt 0:00:03]} Rf8 {[%emt 0:00:35]} 28. h5 {[%emt 0:00:20]} Qc2 {[%emt 0:00:12]} 29. Rf1 {[%emt 0:00:03]} Qe2 {[%emt 0:00:03]} 30. Kg1 {[%emt 0:00:06]} Bb5 {[%emt 0:00:03]} 31. Rb1 {[%emt 0:00:05]} a6 {[%emt 0:00:13]} 32. Nxe6 {[%emt 0:00:01]} fxe6 {[%emt 0:00:09]} 33. Qxe6+ {[%emt 0:00:01]} Kh8 {[%emt 0:00:02]} 34. Rf1 {[%emt 0:00:08]} Qxf1+ {[%emt 0:00:01]} 35. Kh2 {[%emt 0:00:01]} Qxf2 {[%emt 0:00:05]} 36. Qg4 {[%emt 0:00:00]} Qf4+ {[%emt 0:00:01]} 37. Qxf4 Rxf4 {[%emt 0:00:01]} 0-1